[Event "*** Titled Tuesday Blitz"]
[Site "Chess.com"]
[Date "2018.11.06"]
[Round "4"]
[White "Aklanion"]
[Black "Morshynska"]
[Result "1-0"]
[WhiteElo "2198"]
[BlackElo "2069"]
[TimeControl "180+2"]
[EndTime "13:53:09 PST"]
[Termination "Aklanion won by resignation"]

1. e4 {[%clk 0:02:58.5]} 1... e5 {[%clk 0:03:00.5]} 2. Nf3 {[%clk 0:02:59.5]}
2... Nc6 {[%clk 0:02:58.2]} 3. Bc4 {[%clk 0:03:00.8]} 3... Bc5 {[%clk
0:02:58.3]} 4. b4 {[%clk 0:03:01.9]} 4... Bxb4 {[%clk 0:02:58.8]} 5. c3 {[%clk
0:03:02.9]} 5... Ba5 {[%clk 0:02:58.3]} 6. d4 {[%clk 0:03:04.2]} 6... d6 {[%clk
0:02:59]} 7. Qb3 {[%clk 0:03:04.2]} 7... Nxd4 {[%clk 0:02:53.6]} 8. Nxd4 {[%clk
0:02:30]} 8... exd4 {[%clk 0:02:55.5]} 9. Bxf7+ {[%clk 0:02:27.9]} 9... Kf8
{[%clk 0:02:54.7]} 10. O-O {[%clk 0:02:27.8]} 10... Qf6 {[%clk 0:02:53.1]} 11.
Bc4 {[%clk 0:02:24.8]} 11... dxc3 {[%clk 0:02:40.6]} 12. Be3 {[%clk 0:02:09.3]}
12... Ne7 {[%clk 0:02:34.6]} 13. f4 {[%clk 0:01:58.5]} 13... c2 {[%clk
0:01:38.4]} 14. Na3 {[%clk 0:01:58.1]} 14... Nc6 {[%clk 0:01:07.8]} 15. Nxc2
{[%clk 0:01:44.1]} 15... Bb6 {[%clk 0:01:03.2]} 16. Bxb6 {[%clk 0:01:28.5]}
16... axb6 {[%clk 0:01:05.1]} 17. e5 {[%clk 0:01:30.4]} 17... Qe7 {[%clk
0:00:54.7]} 18. Rae1 {[%clk 0:01:23.7]} 18... Na5 {[%clk 0:00:36.3]} 19. Qd3
{[%clk 0:01:24.9]} 19... Nxc4 {[%clk 0:00:32.7]} 20. Qxc4 {[%clk 0:01:26.8]}
20... Be6 {[%clk 0:00:28]} 21. Qc3 {[%clk 0:01:11.4]} 21... Bxa2 {[%clk
0:00:20.2]} 22. Nd4 {[%clk 0:01:08.9]} 22... Bd5 {[%clk 0:00:17.6]} 23. f5
{[%clk 0:00:47.8]} 23... Ra2 {[%clk 0:00:17.5]} 24. Ne6+ {[%clk 0:00:36.8]}
24... Kg8 {[%clk 0:00:15.1]} 25. Nf4 {[%clk 0:00:37.9]} 25... Bc6 {[%clk
0:00:14.4]} 26. f6 {[%clk 0:00:36]} 26... Qf7 {[%clk 0:00:13.3]} 27. fxg7 {[%clk
0:00:28.6]} 27... Qxg7 {[%clk 0:00:15.2]} 28. Qb3+ {[%clk 0:00:29.1]} 28... d5
{[%clk 0:00:12.7]} 29. Qxa2 {[%clk 0:00:29.9]} 29... h5 {[%clk 0:00:12.5]} 30.
e6 {[%clk 0:00:29]} 30... Kf8 {[%clk 0:00:12.9]} 31. e7+ {[%clk 0:00:29]} 31...
Ke8 {[%clk 0:00:13.8]} 32. Ne6 {[%clk 0:00:15.5]} 32... Qg6 {[%clk 0:00:12.7]}
33. Nxc7+ {[%clk 0:00:15.3]} 33... Kd7 {[%clk 0:00:13.8]} 34. e8=Q+ {[%clk
0:00:14.3]} 34... Rxe8 {[%clk 0:00:14.1]} 35. Nxe8 {[%clk 0:00:15.9]} 35... d4
{[%clk 0:00:12.3]} 36. Qf2 {[%clk 0:00:16.2]} 36... Kc8 {[%clk 0:00:12]} 37.
Qf5+ {[%clk 0:00:16.8]} 37... Qxf5 {[%clk 0:00:12.7]} 38. Rxf5 {[%clk
0:00:18.7]} 38... d3 {[%clk 0:00:14.5]} 39. Rd1 {[%clk 0:00:19.4]} 39... Bxe8
{[%clk 0:00:14.2]} 40. Rxd3 {[%clk 0:00:18.5]} 40... Bc6 {[%clk 0:00:14.9]} 41.
Rc3 {[%clk 0:00:20.4]} 1-0

[Event "*** Titled Tuesday Blitz"]
[Site "Chess.com"]
[Date "2018.11.06"]
[Round "4"]
[White "ahmadzada13"]
[Black "OparinGrigoriy"]
[Result "0-1"]
[WhiteElo "2642"]
[BlackElo "2922"]
[TimeControl "180+2"]
[EndTime "13:53:14 PST"]
[Termination "OparinGrigoriy won by resignation"]

1. e4 {[%clk 0:03:00.6]} 1... c6 {[%clk 0:03:01.4]} 2. d4 {[%clk 0:03:00.8]}
2... d5 {[%clk 0:03:03.3]} 3. Nc3 {[%clk 0:03:01.9]} 3... dxe4 {[%clk
0:03:04.4]} 4. Nxe4 {[%clk 0:03:03.8]} 4... Nf6 {[%clk 0:03:06.3]} 5. Nxf6+
{[%clk 0:03:03.8]} 5... exf6 {[%clk 0:03:08.2]} 6. Bc4 {[%clk 0:03:04.4]} 6...
Bd6 {[%clk 0:03:10.1]} 7. Qe2+ {[%clk 0:03:04.5]} 7... Qe7 {[%clk 0:03:11.1]} 8.
Qxe7+ {[%clk 0:03:05]} 8... Kxe7 {[%clk 0:03:13]} 9. Nf3 {[%clk 0:03:05.5]} 9...
Be6 {[%clk 0:03:14.9]} 10. Bxe6 {[%clk 0:03:06.1]} 10... fxe6 {[%clk 0:03:16.8]}
11. O-O {[%clk 0:03:06.7]} 11... Nd7 {[%clk 0:03:18.1]} 12. Re1 {[%clk 0:03:08]}
12... Kf7 {[%clk 0:03:19.7]} 13. Bd2 {[%clk 0:03:08.3]} 13... a5 {[%clk
0:03:21.2]} 14. a4 {[%clk 0:03:07.8]} 14... b5 {[%clk 0:03:21.6]} 15. axb5
{[%clk 0:03:07.1]} 15... cxb5 {[%clk 0:03:23]} 16. Bxa5 {[%clk 0:03:00.3]} 16...
Rhc8 {[%clk 0:03:23.2]} 17. c3 {[%clk 0:02:46.5]} 17... Ra6 {[%clk 0:03:20.9]}
18. Nd2 {[%clk 0:02:30.8]} 18... Be7 {[%clk 0:03:22.1]} 19. Nb3 {[%clk
0:02:25.2]} 19... Rc4 {[%clk 0:03:09.7]} 20. Ra2 {[%clk 0:01:55.1]} 20... e5
{[%clk 0:03:03]} 21. Rea1 {[%clk 0:01:52.8]} 21... b4 {[%clk 0:02:44.9]} 22.
dxe5 {[%clk 0:01:37.3]} 22... Nxe5 {[%clk 0:02:43.8]} 23. Bxb4 {[%clk 0:01:28]}
23... Rxa2 {[%clk 0:02:44.2]} 24. Rxa2 {[%clk 0:01:27.8]} 24... Bxb4 {[%clk
0:02:44.6]} 25. cxb4 {[%clk 0:01:28.7]} 25... Rxb4 {[%clk 0:02:36.8]} 26. Nd2
{[%clk 0:01:26.3]} 26... Nd3 {[%clk 0:02:34.1]} 27. b3 {[%clk 0:01:21.1]} 27...
Rb7 {[%clk 0:02:33.3]} 28. g3 {[%clk 0:01:07.7]} 28... g5 {[%clk 0:02:33.5]} 29.
Kg2 {[%clk 0:01:05.1]} 29... h5 {[%clk 0:02:34.1]} 30. h3 {[%clk 0:01:05.4]}
30... Kg6 {[%clk 0:02:22.6]} 31. Ra6 {[%clk 0:00:58.7]} 31... Nc5 {[%clk
0:02:19.7]} 32. Ra3 {[%clk 0:00:48.2]} 32... Rb4 {[%clk 0:02:14.5]} 33. Kf3
{[%clk 0:00:47.4]} 33... h4 {[%clk 0:02:13.5]} 34. gxh4 {[%clk 0:00:37.1]} 34...
Rxh4 {[%clk 0:02:15.4]} 35. Kg2 {[%clk 0:00:32.4]} 35... Nd3 {[%clk 0:02:11]}
36. Ra6 {[%clk 0:00:24.3]} 36... Nf4+ {[%clk 0:02:10]} 37. Kg1 {[%clk
0:00:23.7]} 37... Nxh3+ {[%clk 0:02:07.7]} 38. Kf1 {[%clk 0:00:20.3]} 38... Nf4
{[%clk 0:02:08.9]} 39. Kg1 {[%clk 0:00:18.2]} 39... Kf5 {[%clk 0:02:06.1]} 40.
Nf3 {[%clk 0:00:18.2]} 40... Rh3 {[%clk 0:01:59.8]} 41. Nd4+ {[%clk 0:00:17.3]}
41... Ke4 {[%clk 0:02:00.8]} 42. Ne6 {[%clk 0:00:10.8]} 42... Ne2+ {[%clk
0:01:33.3]} 43. Kg2 {[%clk 0:00:10.7]} 43... Rc3 {[%clk 0:01:34.3]} 44. Ra4+
{[%clk 0:00:07.3]} 44... Ke5 {[%clk 0:01:26.8]} 45. Ng7 {[%clk 0:00:05]} 45...
Nf4+ {[%clk 0:01:24]} 46. Kh2 {[%clk 0:00:05.8]} 46... Rxb3 {[%clk 0:01:21.3]}
47. Ra5+ {[%clk 0:00:06.2]} 47... Ke4 {[%clk 0:01:22.7]} 48. Ra4+ {[%clk
0:00:06.5]} 48... Kf3 {[%clk 0:01:23.2]} 49. Ra2 {[%clk 0:00:07.2]} 49... Rb7
{[%clk 0:01:16.2]} 0-1

[Event "*** Titled Tuesday Blitz"]
[Site "Chess.com"]
[Date "2018.11.06"]
[Round "4"]
[White "Paparama_1917"]
[Black "Denis_Makhnyov"]
[Result "0-1"]
[WhiteElo "2577"]
[BlackElo "2797"]
[TimeControl "180+2"]
[EndTime "13:53:19 PST"]
[Termination "Denis_Makhnyov won by resignation"]

1. e4 {[%clk 0:02:57.8]} 1... e5 {[%clk 0:03:00.5]} 2. Nf3 {[%clk 0:02:58.4]}
2... Nc6 {[%clk 0:03:01.6]} 3. Bb5 {[%clk 0:02:59.3]} 3... Nge7 {[%clk
0:03:02.2]} 4. b4 {[%clk 0:02:59.4]} 4... g6 {[%clk 0:03:00.9]} 5. Bb2 {[%clk
0:02:59.9]} 5... Bg7 {[%clk 0:03:02.1]} 6. a3 {[%clk 0:03:00.3]} 6... O-O {[%clk
0:03:02.7]} 7. d3 {[%clk 0:03:00]} 7... d5 {[%clk 0:02:59.9]} 8. Nbd2 {[%clk
0:02:58.9]} 8... a6 {[%clk 0:02:59.9]} 9. Ba4 {[%clk 0:02:59.3]} 9... h6 {[%clk
0:02:56]} 10. Bb3 {[%clk 0:02:58.1]} 10... a5 {[%clk 0:02:44.4]} 11. b5 {[%clk
0:02:58.1]} 11... Nd4 {[%clk 0:02:44.9]} 12. Nxd4 {[%clk 0:02:52.5]} 12... exd4
{[%clk 0:02:46.8]} 13. Qf3 {[%clk 0:02:50.1]} 13... Be6 {[%clk 0:02:40.5]} 14.
O-O {[%clk 0:02:31.1]} 14... a4 {[%clk 0:02:34.7]} 15. Ba2 {[%clk 0:02:27.5]}
15... c5 {[%clk 0:02:35.8]} 16. bxc6 {[%clk 0:02:27.5]} 16... bxc6 {[%clk
0:02:36.2]} 17. exd5 {[%clk 0:02:21.6]} 17... Nxd5 {[%clk 0:02:35.6]} 18. Rfb1
{[%clk 0:02:09.2]} 18... Qg5 {[%clk 0:02:22.4]} 19. Ne4 {[%clk 0:02:08.6]} 19...
Qe7 {[%clk 0:02:23.5]} 20. Bc4 {[%clk 0:01:59]} 20... f5 {[%clk 0:02:02.8]} 21.
Nd2 {[%clk 0:01:55.9]} 21... Bf7 {[%clk 0:02:03.2]} 22. Re1 {[%clk 0:01:54.1]}
22... Qg5 {[%clk 0:01:57.2]} 23. Nf1 {[%clk 0:01:45.5]} 23... Rab8 {[%clk
0:01:55.7]} 24. Bc1 {[%clk 0:01:46.1]} 24... Qf6 {[%clk 0:01:56.1]} 25. Bd2
{[%clk 0:01:46.6]} 25... Rb2 {[%clk 0:01:56]} 26. Rac1 {[%clk 0:01:41.8]} 26...
Kh7 {[%clk 0:01:42.1]} 27. Ng3 {[%clk 0:01:41.6]} 27... Rd8 {[%clk 0:01:24.8]}
28. h3 {[%clk 0:01:42]} 28... Rd7 {[%clk 0:01:24.2]} 29. Ne2 {[%clk 0:01:31.5]}
29... c5 {[%clk 0:00:57.6]} 30. Nf4 {[%clk 0:01:17.1]} 30... Nxf4 {[%clk
0:00:58.3]} 31. Bxf4 {[%clk 0:01:17.9]} 31... Bxc4 {[%clk 0:00:56.3]} 32. dxc4
{[%clk 0:01:19.7]} 32... Qb6 {[%clk 0:00:43.1]} 33. Re8 {[%clk 0:01:15.3]} 33...
Qb7 {[%clk 0:00:38.1]} 34. Qe2 {[%clk 0:01:09.4]} 34... d3 {[%clk 0:00:36.8]}
35. Qe6 {[%clk 0:01:09.2]} 35... Rf7 {[%clk 0:00:37.8]} 36. cxd3 {[%clk
0:01:02.9]} 36... g5 {[%clk 0:00:38.8]} 37. Be5 {[%clk 0:00:29]} 37... Re2
{[%clk 0:00:37.2]} 38. Qd6 {[%clk 0:00:17.1]} 38... Qd7 {[%clk 0:00:38.2]} 39.
Qxd7 {[%clk 0:00:14.6]} 39... Rxd7 {[%clk 0:00:40.1]} 40. f4 {[%clk 0:00:08.7]}
40... gxf4 {[%clk 0:00:40.9]} 41. Bxg7 {[%clk 0:00:09.2]} 41... Rxe8 {[%clk
0:00:42.1]} 0-1

[Event "*** Titled Tuesday Blitz"]
[Site "Chess.com"]
[Date "2018.11.06"]
[Round "4"]
[White "dretch"]
[Black "Msb2"]
[Result "1-0"]
[WhiteElo "2798"]
[BlackElo "2873"]
[TimeControl "180+2"]
[EndTime "13:53:20 PST"]
[Termination "dretch won by resignation"]

1. d4 {[%clk 0:03:01.9]} 1... d5 {[%clk 0:03:00.9]} 2. c4 {[%clk 0:03:02.9]}
2... e6 {[%clk 0:03:02.4]} 3. Nc3 {[%clk 0:03:03.6]} 3... Bb4 {[%clk 0:03:03.4]}
4. a3 {[%clk 0:03:02.2]} 4... Bxc3+ {[%clk 0:03:04.4]} 5. bxc3 {[%clk
0:03:03.5]} 5... Nf6 {[%clk 0:03:06.3]} 6. e3 {[%clk 0:03:04.4]} 6... c6 {[%clk
0:03:06.8]} 7. Bd3 {[%clk 0:03:02.5]} 7... e5 {[%clk 0:03:07.4]} 8. cxd5 {[%clk
0:02:53.5]} 8... e4 {[%clk 0:03:07.9]} 9. Be2 {[%clk 0:02:50.6]} 9... cxd5
{[%clk 0:03:09.1]} 10. c4 {[%clk 0:02:40.8]} 10... O-O {[%clk 0:03:08]} 11. cxd5
{[%clk 0:02:41.2]} 11... Nxd5 {[%clk 0:03:08.9]} 12. Bd2 {[%clk 0:02:42.2]}
12... Nc6 {[%clk 0:03:06.9]} 13. Bc4 {[%clk 0:02:41.3]} 13... Be6 {[%clk
0:03:00]} 14. Rc1 {[%clk 0:02:41.1]} 14... Qg5 {[%clk 0:02:58.9]} 15. g3 {[%clk
0:02:33.3]} 15... Rac8 {[%clk 0:02:59.3]} 16. Be2 {[%clk 0:02:26.8]} 16... Nce7
{[%clk 0:02:47.8]} 17. h4 {[%clk 0:02:21.4]} 17... Qg6 {[%clk 0:02:38.9]} 18.
Nh3 {[%clk 0:02:21.8]} 18... Rxc1 {[%clk 0:02:39.1]} 19. Qxc1 {[%clk 0:02:22.6]}
19... Bg4 {[%clk 0:02:38.3]} 20. Bxg4 {[%clk 0:02:10.5]} 20... Qxg4 {[%clk
0:02:40.2]} 21. Qd1 {[%clk 0:02:11.8]} 21... Qd7 {[%clk 0:02:35.4]} 22. Ng5
{[%clk 0:02:06.1]} 22... f5 {[%clk 0:02:35.3]} 23. O-O {[%clk 0:02:03.3]} 23...
h6 {[%clk 0:02:23.8]} 24. Nh3 {[%clk 0:02:04.2]} 24... Qb5 {[%clk 0:02:22.1]}
25. Qc2 {[%clk 0:01:45.2]} 25... Rc8 {[%clk 0:02:21.4]} 26. Qa2 {[%clk 0:01:46]}
26... Qc4 {[%clk 0:02:22.5]} 27. Qb1 {[%clk 0:01:44.9]} 27... Qe2 {[%clk
0:02:18.5]} 28. Bb4 {[%clk 0:01:37.6]} 28... Ng6 {[%clk 0:01:52.3]} 29. Qb3
{[%clk 0:01:20.7]} 29... Qc4 {[%clk 0:01:49.6]} 30. Qxc4 {[%clk 0:01:20.7]}
30... Rxc4 {[%clk 0:01:51.5]} 31. h5 {[%clk 0:01:21]} 31... Nh8 {[%clk
0:01:46.6]} 32. Rb1 {[%clk 0:01:19.6]} 32... b6 {[%clk 0:01:46.5]} 33. Nf4
{[%clk 0:01:10.5]} 33... Nxf4 {[%clk 0:01:46.8]} 34. gxf4 {[%clk 0:01:11.8]}
34... Nf7 {[%clk 0:01:41.3]} 35. a4 {[%clk 0:01:11.2]} 35... Nd8 {[%clk
0:01:41.1]} 36. a5 {[%clk 0:01:07.2]} 36... b5 {[%clk 0:01:35.7]} 37. a6 {[%clk
0:01:07.8]} 37... Rc6 {[%clk 0:00:28.4]} 38. Be7 {[%clk 0:01:04.2]} 38... Ne6
{[%clk 0:00:19.9]} 39. Rxb5 {[%clk 0:00:57]} 39... Rxa6 {[%clk 0:00:14.4]} 40.
Rxf5 {[%clk 0:00:57]} 40... Ra1+ {[%clk 0:00:09.1]} 41. Kg2 {[%clk 0:00:57.6]}
41... a5 {[%clk 0:00:11]} 42. d5 {[%clk 0:00:55.3]} 42... Nc7 {[%clk 0:00:05.1]}
43. Rf8+ {[%clk 0:00:54]} 43... Kh7 {[%clk 0:00:05.5]} 44. d6 {[%clk 0:00:55.1]}
44... Ne6 {[%clk 0:00:05.9]} 45. d7 {[%clk 0:00:55.9]} 45... Rd1 {[%clk
0:00:04.8]} 46. d8=Q {[%clk 0:00:55.6]} 46... Nxd8 {[%clk 0:00:06.1]} 47. Rxd8
{[%clk 0:00:56.1]} 47... Rxd8 {[%clk 0:00:07.2]} 48. Bxd8 {[%clk 0:00:57.2]}
48... a4 {[%clk 0:00:09.1]} 49. Be7 {[%clk 0:00:58.2]} 49... g6 {[%clk 0:00:11]}
50. Kg3 {[%clk 0:00:57.5]} 50... Kg7 {[%clk 0:00:11.8]} 51. Kg4 {[%clk
0:00:58.3]} 51... Kf7 {[%clk 0:00:13]} 52. Ba3 {[%clk 0:00:59.7]} 52... Kf6
{[%clk 0:00:13.5]} 53. hxg6 {[%clk 0:01:00]} 53... Kxg6 {[%clk 0:00:15.4]} 54.
f5+ {[%clk 0:01:01.3]} 54... Kf6 {[%clk 0:00:17.3]} 55. Bb2+ {[%clk 0:01:02.2]}
55... Kf7 {[%clk 0:00:18.5]} 56. Kh5 {[%clk 0:01:03.2]} 1-0

[Event "*** Titled Tuesday Blitz"]
[Site "Chess.com"]
[Date "2018.11.06"]
[Round "4"]
[White "Kawhi_Leonard2"]
[Black "tteshan"]
[Result "1-0"]
[WhiteElo "2283"]
[BlackElo "2137"]
[TimeControl "180+2"]
[EndTime "13:53:21 PST"]
[Termination "Kawhi_Leonard2 won by checkmate"]

1. e4 {[%clk 0:03:01.9]} 1... c5 {[%clk 0:03:00.8]} 2. Nf3 {[%clk 0:03:03.1]}
2... Nc6 {[%clk 0:03:01.1]} 3. d4 {[%clk 0:03:04.6]} 3... cxd4 {[%clk
0:03:01.7]} 4. Nxd4 {[%clk 0:03:06.5]} 4... g6 {[%clk 0:03:02.7]} 5. Nc3 {[%clk
0:03:02.6]} 5... Bg7 {[%clk 0:03:03.4]} 6. Be3 {[%clk 0:03:04.2]} 6... Nf6
{[%clk 0:03:04.1]} 7. Bc4 {[%clk 0:03:05]} 7... O-O {[%clk 0:03:04.5]} 8. Bb3
{[%clk 0:03:05.6]} 8... Qa5 {[%clk 0:03:01.8]} 9. O-O {[%clk 0:03:04.9]} 9... d6
{[%clk 0:03:01.4]} 10. h3 {[%clk 0:03:06]} 10... Bd7 {[%clk 0:02:56.4]} 11. Re1
{[%clk 0:03:06.8]} 11... Rfc8 {[%clk 0:02:54.8]} 12. Nf3 {[%clk 0:03:07.4]}
12... Qd8 {[%clk 0:02:52.9]} 13. Bg5 {[%clk 0:03:02.3]} 13... Na5 {[%clk
0:02:45.1]} 14. Nd5 {[%clk 0:02:55.7]} 14... Nxd5 {[%clk 0:02:38.4]} 15. exd5
{[%clk 0:02:56.9]} 15... f6 {[%clk 0:02:27.2]} 16. Be3 {[%clk 0:02:54.6]} 16...
Nxb3 {[%clk 0:02:28.1]} 17. axb3 {[%clk 0:02:55]} 17... a6 {[%clk 0:02:28.2]}
18. c4 {[%clk 0:02:50.3]} 18... b5 {[%clk 0:02:26.7]} 19. Rc1 {[%clk 0:02:48.3]}
19... h6 {[%clk 0:02:20.4]} 20. c5 {[%clk 0:02:47.9]} 20... f5 {[%clk
0:02:03.5]} 21. c6 {[%clk 0:02:43.6]} 21... Be8 {[%clk 0:02:04]} 22. Qd2 {[%clk
0:02:38.7]} 22... Kh7 {[%clk 0:02:03.5]} 23. Bd4 {[%clk 0:02:30.5]} 23... Bf7
{[%clk 0:02:02.3]} 24. Bxg7 {[%clk 0:02:30.3]} 24... Kxg7 {[%clk 0:02:03.7]} 25.
Qd4+ {[%clk 0:02:25.7]} 25... Kh7 {[%clk 0:02:03.5]} 26. Rc3 {[%clk 0:02:24]}
26... Rc7 {[%clk 0:02:03.4]} 27. Rce3 {[%clk 0:02:24.2]} 27... Raa7 {[%clk
0:02:02.8]} 28. h4 {[%clk 0:02:15.7]} 28... Qg8 {[%clk 0:02:03.2]} 29. Rd1
{[%clk 0:02:13]} 29... a5 {[%clk 0:01:59.1]} 30. Qd3 {[%clk 0:01:56.6]} 30... b4
{[%clk 0:01:54.8]} 31. h5 {[%clk 0:01:57.5]} 31... Qg7 {[%clk 0:01:53.3]} 32.
hxg6+ {[%clk 0:01:56.7]} 32... Bxg6 {[%clk 0:01:54.7]} 33. Nd4 {[%clk
0:01:51.2]} 33... f4 {[%clk 0:01:44.4]} 34. Re4 {[%clk 0:01:44.8]} 34... Qf7
{[%clk 0:01:24.1]} 35. Ne6 {[%clk 0:01:42.3]} 35... Rc8 {[%clk 0:01:22.7]} 36.
Qf3 {[%clk 0:01:25.4]} 36... Bxe4 {[%clk 0:01:16.2]} 37. Qxe4+ {[%clk
0:01:26.6]} 37... Qg6 {[%clk 0:01:17.4]} 38. Qxf4 {[%clk 0:01:23.7]} 38... Qf6
{[%clk 0:01:12.9]} 39. Qe3 {[%clk 0:01:16.6]} 39... Raa8 {[%clk 0:01:04.2]} 40.
Rd4 {[%clk 0:01:17.1]} 40... Rg8 {[%clk 0:01:02.2]} 41. Rf4 {[%clk 0:01:11.8]}
41... Qg6 {[%clk 0:00:56.6]} 42. Qf3 {[%clk 0:01:11.2]} 42... a4 {[%clk
0:00:39.9]} 43. bxa4 {[%clk 0:00:40.1]} 43... Kh8 {[%clk 0:00:25.6]} 44. b3
{[%clk 0:00:38.8]} 44... Qb1+ {[%clk 0:00:14.9]} 45. Kh2 {[%clk 0:00:39.2]}
45... Qg6 {[%clk 0:00:16.4]} 46. Rf7 {[%clk 0:00:35.3]} 46... Rae8 {[%clk
0:00:15.9]} 47. g3 {[%clk 0:00:34.8]} 47... h5 {[%clk 0:00:16.5]} 48. Qf4 {[%clk
0:00:33.2]} 48... Qg4 {[%clk 0:00:12.2]} 49. Qh6# {[%clk 0:00:33.7]} 1-0

[Event "*** Titled Tuesday Blitz"]
[Site "Chess.com"]
[Date "2018.11.06"]
[Round "4"]
[White "pulvettd"]
[Black "jacky72"]
[Result "0-1"]
[WhiteElo "2514"]
[BlackElo "2696"]
[TimeControl "180+2"]
[EndTime "13:53:28 PST"]
[Termination "jacky72 won by checkmate"]

1. d4 {[%clk 0:03:01.9]} 1... Nf6 {[%clk 0:03:00.7]} 2. c4 {[%clk 0:03:02.5]}
2... g6 {[%clk 0:03:02.2]} 3. Nc3 {[%clk 0:03:01.1]} 3... Bg7 {[%clk 0:03:03.6]}
4. e4 {[%clk 0:03:02]} 4... d6 {[%clk 0:03:05.5]} 5. h3 {[%clk 0:03:00.6]} 5...
O-O {[%clk 0:03:06.5]} 6. Be3 {[%clk 0:03:01.9]} 6... Na6 {[%clk 0:03:02]} 7. g4
{[%clk 0:02:58.3]} 7... c5 {[%clk 0:03:02.7]} 8. d5 {[%clk 0:02:57.3]} 8... e6
{[%clk 0:03:04]} 9. Bg2 {[%clk 0:02:54.1]} 9... exd5 {[%clk 0:02:55.8]} 10. cxd5
{[%clk 0:02:52.6]} 10... b5 {[%clk 0:02:54.6]} 11. Nxb5 {[%clk 0:02:42.6]} 11...
Qa5+ {[%clk 0:02:45]} 12. Nc3 {[%clk 0:02:37.5]} 12... Rb8 {[%clk 0:02:46.3]}
13. Qd2 {[%clk 0:02:30.9]} 13... Rxb2 {[%clk 0:02:39]} 14. Qxb2 {[%clk
0:02:32.8]} 14... Nxe4 {[%clk 0:02:40.1]} 15. Ne2 {[%clk 0:02:28]} 15... Nxc3
{[%clk 0:02:38]} 16. O-O {[%clk 0:01:44.3]} 16... Nxd5 {[%clk 0:02:37.8]} 17.
Qd2 {[%clk 0:01:41.7]} 17... Qxd2 {[%clk 0:02:37.5]} 18. Bxd2 {[%clk 0:01:38.6]}
18... Bxa1 {[%clk 0:02:38.3]} 19. Rxa1 {[%clk 0:01:35.6]} 19... Be6 {[%clk
0:02:37.3]} 20. f4 {[%clk 0:01:22.9]} 20... Nb6 {[%clk 0:02:38.1]} 21. f5 {[%clk
0:01:17]} 21... Bd5 {[%clk 0:02:37]} 22. Nf4 {[%clk 0:01:08.7]} 22... Bxg2
{[%clk 0:02:37.6]} 23. Kxg2 {[%clk 0:01:10.5]} 23... d5 {[%clk 0:02:38.9]} 24.
Re1 {[%clk 0:01:00]} 24... Nc4 {[%clk 0:02:38.6]} 25. Bc1 {[%clk 0:00:51.3]}
25... d4 {[%clk 0:02:40]} 26. Re7 {[%clk 0:00:48.4]} 26... Ra8 {[%clk
0:02:24.8]} 27. h4 {[%clk 0:00:44.8]} 27... Nb4 {[%clk 0:02:24.1]} 28. h5 {[%clk
0:00:41.3]} 28... Nxa2 {[%clk 0:02:19.7]} 29. fxg6 {[%clk 0:00:38.3]} 29... hxg6
{[%clk 0:02:18.9]} 30. hxg6 {[%clk 0:00:31.2]} 30... fxg6 {[%clk 0:02:19.9]} 31.
Nd5 {[%clk 0:00:24.9]} 31... Nxc1 {[%clk 0:02:20.3]} 32. Nf6+ {[%clk 0:00:24.3]}
32... Kf8 {[%clk 0:02:21.7]} 33. Rd7 {[%clk 0:00:25.3]} 33... Ne3+ {[%clk
0:01:59.4]} 34. Kf3 {[%clk 0:00:24.1]} 34... Nd5 {[%clk 0:01:57.1]} 35. Nxd5
{[%clk 0:00:22.7]} 35... Re8 {[%clk 0:01:53.8]} 36. Rxa7 {[%clk 0:00:18.7]}
36... d3 {[%clk 0:01:50]} 37. Kf4 {[%clk 0:00:16]} 37... d2 {[%clk 0:01:49.6]}
38. Nc3 {[%clk 0:00:16.3]} 38... Ne2+ {[%clk 0:01:48.6]} 39. Kg5 {[%clk
0:00:09.7]} 39... Nxc3 {[%clk 0:01:49.3]} 40. Kxg6 {[%clk 0:00:10.9]} 40... Re6+
{[%clk 0:01:48.3]} 41. Kf5 {[%clk 0:00:11.3]} 41... Rb6 {[%clk 0:01:46.4]} 42.
Ra8+ {[%clk 0:00:06.6]} 42... Ke7 {[%clk 0:01:47.2]} 43. Ra7+ {[%clk 0:00:08.5]}
43... Kd6 {[%clk 0:01:48.2]} 44. g5 {[%clk 0:00:08.9]} 44... d1=Q {[%clk
0:01:48.9]} 45. g6 {[%clk 0:00:10.8]} 45... Qf3+ {[%clk 0:01:44]} 46. Kg5 {[%clk
0:00:08]} 46... Ne4+ {[%clk 0:01:45.2]} 47. Kh6 {[%clk 0:00:09.4]} 47... Qh3+
{[%clk 0:01:45.2]} 48. Kg7 {[%clk 0:00:10.4]} 48... Rc6 {[%clk 0:01:44.4]} 49.
Rf7 {[%clk 0:00:04.1]} 49... Rc7 {[%clk 0:01:44.9]} 50. Kg8 {[%clk 0:00:05.5]}
50... Rxf7 {[%clk 0:01:42.8]} 51. gxf7 {[%clk 0:00:05.9]} 51... Qe6 {[%clk
0:01:43.7]} 52. Kh8 {[%clk 0:00:05.1]} 52... Qf6+ {[%clk 0:01:43.3]} 53. Kg8
{[%clk 0:00:05.4]} 53... Ke7 {[%clk 0:01:41.2]} 54. f8=Q+ {[%clk 0:00:04.6]}
54... Qxf8+ {[%clk 0:01:42]} 55. Kh7 {[%clk 0:00:06.5]} 55... Qf6 {[%clk
0:01:41.3]} 56. Kg8 {[%clk 0:00:07.2]} 56... Qg5+ {[%clk 0:01:40]} 57. Kh7
{[%clk 0:00:07.5]} 57... Nf6+ {[%clk 0:01:40.3]} 58. Kh8 {[%clk 0:00:09.4]}
58... Qg8# {[%clk 0:01:40.9]} 0-1